Cogmind - Beta 16 @@@ ROGUE MODE // 2025.11.16 @ 13:28:12 // Winter2019/RPGLIKE Player: Jaegerpls Result: Destroyed by D3-KPA(R) with Subdweller Beam Cannon Performance ------------- Evolutions (0) 0 Regions Visited (2) 400 Robots Destroyed (43) 215 Value Destroyed (1055) 1055 Prototype IDs (14) 280 Alien Tech Used (0) 0 Bonus (0) 0 TOTAL SCORE: 1950 Bonus ------- None Cogmind --------- Core Integrity 0/650 Matter 300/300 Energy 250/250 System Corruption 0% Temperature Cool (9) Movement Treading (160) Location -10/Subcaves Parts ------- > --- POWER (1+3) ------ Ion Engine > --- PROPULSION (3) --- Spiked Treads Spiked Treads Spiked Treads > --- UTILITY (3) ------ Improved Terrain Scanner Targeting Computer Power Bank > --- WEAPON (2) ------- Particle Cannon Particle Cannon > --- INVENTORY (1) ---- Multitool Peak State ------------ > --- POWER ------------ Ion Engine > --- PROPULSION ------- Spiked Treads Spiked Treads Spiked Treads > --- UTILITY ---------- Improved Terrain Scanner Targeting Computer Power Bank > --- WEAPON ----------- Particle Cannon Particle Cannon > --- INVENTORY -------- Multitool [Rating: 24] Favorites ----------- Power Ion Engine Engine Ion Engine Propulsion Hover Unit Treads Spiked Treads Wheel Wheel Hover Unit Hover Unit Utility Targeting Computer Device Improved Terrain Scanner Processor Targeting Computer Weapon Particle Cannon Energy Gun Medium Laser Energy Cannon Particle Cannon Build | -11 -10 -10 ------- Run | Yrd Mat Sub Slots Evolved 5 | 4 . 1 Power . | . . . Propulsion 2 | 1 . 1 Utility 2 | 2 . . Weapon 1 | 1 . . Parts Attached 21 | 8 9 4 Power 1 | 1 . . Engine 1 | 1 . . Core . | . . . Reactor . | . . . Propulsion 10 | 4 3 3 Treads 3 | . . 3 Leg . | . . . Wheel 4 | 4 . . Hover 3 | . 3 . Flight . | . . . Utility 5 | 1 3 1 Device 3 | 1 1 1 Storage . | . . . Processor 2 | . 2 . Hackware . | . . . Protection . | . . . Artifact . | . . . Weapon 5 | 2 3 . Energy Gun 3 | 2 1 . Energy Cannon 2 | . 2 . Ballistic Gun . | . . . Ballistic Cannon . | . . . Launcher . | . . . Special Weapon . | . . . Impact Weapon . | . . . Slashing Weapon . | . . . Piercing Weapon . | . . . Special Melee Weapon . | . . . Unidentified Prototypes . | . . . Parts Lost 1 | . . 1 Power . | . . . Propulsion 1 | . . 1 Utility . | . . . Weapon . | . . . Highest Loss Streak 1 | . . 1 To Critical Strikes . | . . . Average Backups . | . 1 . Power . | . . . Propulsion . | . . . Utility . | . . . Weapon . | . . . Tool/Special . | . . . Unused Backups 2 | . 1 1 Power . | . . . Propulsion . | . . . Utility 1 | . 1 . Weapon . | . . . Tool/Special 1 | . . 1 Average Slot Usage (%) 86 | . 94 83 Engine 10 | . 12 9 Treads 7 | . . 10 Wheel 2 | . 8 . Hover 13 | . 11 14 Device 13 | . 12 13 Processor 17 | . 24 15 Energy Gun 4 | . 15 . Energy Cannon 16 | . 9 19 Peak Build Rating 24 | 8 12 24 Average Rating 15 | 5 10 17 On Entrance 6 | . 8 12 Avg Prop Armor Cover (%) . | . . . Naked Turns . | . . . Heaviest Build 17 | 9 14 17 Greatest Support 65 | 32 26 65 Greatest Overweight (x) 2 | . 2 1 Average Overweight (x) . | . . . Largest Inventory Capacity 1 | 1 1 1 Average Capacity . | . 1 1 Most Carried 1 | 1 1 1 Average Carried . | . . . Final Capacity 1 | 1 1 1 Final Carried 1 | 1 1 1 Class Distribution -------------------- 100% | Mutant Dominant Class ---------------- Mutant | -10/Materials Mutant | -10/Subcaves Resources | -11 -10 -10 ----------- Run | Yrd Mat Sub Matter Collected 440 | 241 149 50 Remotely . | . . . Salvage Created 1490 | 88 957 445 Parts 80 | 9 43 28 Haulers Intercepted 2 | . 2 . Recyclers Shooed 6 | 1 5 . Parts Field Recycled . | . . . Retrieved Matter . | . . . Parts Self-Destructed 12 | . . 12 Prevented . | . . . Parts Restored . | . . . Kills | -11 -10 -10 ------- Run | Yrd Mat Sub Combat Hostiles Destroyed 23 | . 10 13 Guns 10 | . 10 . Cannons 11 | . . 11 Classes Destroyed 11 | 2 7 2 Worker 4 | . 4 . Builder 1 | . 1 . Tunneler 2 | 2 . . Hauler 2 | . 2 . Recycler 6 | 1 5 . Mechanic 1 | . 1 . Operator 1 | . 1 . Watcher 3 | . 3 . Grunt 12 | . 10 2 Sentry 1 | . . 1 Subdweller 10 | . . 10 Best Kill Streak 10 | 3 10 2 Combat Bots Only 2 | . 2 2 Max Kills in Single Turn 1 | 1 1 1 Gunslinging . | . . . Exploded . | . . . Melee . | . . . Uniques/NPCs Destroyed . | . . . Combat | -11 -10 -10 -------- Run | Yrd Mat Sub Hostile Shots Fired 143 | . 52 91 Missed 37 | . 16 21 Hits 106 | . 36 70 Projectile 106 | . 36 70 Critical Strikes 3 | . 1 2 Damage Taken 2019 | . 493 1526 Core 1647 | . 397 1250 Absorbed by Shields . | . . . Redirected to Core 1296 | . 303 993 Core Remaining (%) 100 | 100 . . Volleys Fired 179 | 12 89 78 Largest 2 | 2 2 2 Hottest 136 | 90 136 136 Shots Fired 358 | 24 178 156 Gun 188 | 24 164 . Cannon 170 | . 14 156 Launcher . | . . . Special . | . . . Kinetic . | . . . Thermal 358 | 24 178 156 Explosive . | . . . Electromagnetic . | . . . Robot Hit Streak 31 | 8 17 31 Robot Miss Streak 8 | 8 4 3 Penetration Max . | . . . Secondary Targets 1 | . 1 . Max Gunslinging Chain 1 | . 1 . Shots Hit Robots 233 | 14 114 105 Core Hits 76 | 4 50 22 Critical Kills 2 | . . 2 Critical Parts Destroyed . | . . . Critical Strikes 8 | 1 5 2 Burn 6 | 1 5 . Meltdown 2 | . . 2 Melee Attacks . | . . . Impact . | . . . Slashing . | . . . Piercing . | . . . Sneak Attacks . | . . . Combat Hostiles . | . . . Follow-up Attacks . | . . . Damage Inflicted 3668 | 163 1430 2075 Guns 1533 | 163 1370 . Cannons 2135 | . 60 2075 Explosions . | . . . Melee . | . . . Ramming . | . . . Kinetic . | . . . Thermal 3668 | 163 1430 2075 Explosive . | . . . Electromagnetic . | . . . Impact . | . . . Slashing . | . . . Piercing . | . . . Highest Corruption . | . . . Average Corruption . | . . . Corruption Purged . | . . . Corruption Blocked . | . . . Overload Shots . | . . . Overflow Damage 5 | . 5 . Projectiles 5 | . 5 . Explosions . | . . . Melee . | . . . Knockbacks . | . . . Impact . | . . . Kinetic . | . . . Secondary . | . . . Self-Inflicted Damage . | . . . Shots . | . . . Rammed . | . . . Targets Rammed . | . . . Kicked . | . . . Crushed . | . . . Highest Temperature 252 | 48 252 17 Average Temperature 61 | 19 68 7 Received Heat Transfer 585 | . 255 330 Siege Activations . | . . . Martial Activations . | . . . Shielding Activations . | . . . Robots Disrupted . | . . . Combat Hostiles . | . . . Robots Corrupted . | . . . Combat Hostiles . | . . . Parts Fried . | . . . Impact Corruptions . | . . . Robots Melted 2 | . . 2 Combat Hostiles 2 | . . 2 Parts Melted 21 | 1 9 11 Heat Transferred 8383 | 496 4150 3737 Parts Sabotaged . | . . . Parts Stolen . | . . . Parts Stripped . | . . . Power Chain Reactions . | . . . Alert | -11 -10 -10 ------- Run | Yrd Mat Sub Maximum Alert Level . | . . . Low Security (%) 100 | 100 100 . Level 1 . | . . . Level 2 . | . . . Level 3 . | . . . Level 4 . | . . . Level 5 . | . . . High Security . | . . . Max Security . | . . . Peak Influence 123 | 10 123 . Initial . | . . . Average 30 | 1 33 . Influence Increases 479 | 15 394 70 Destroy 0b10 Robot/C 260 | . 200 60 Destroy 0b10 Robot/NC 100 | 15 85 . Destroy Leader 60 | . 50 10 Successful Hack 29 | . 29 . Disable Machine 15 | . 15 . Lose Combat Pursuer 15 | . 15 . Influence Decreases 479 | 15 394 70 Time Decay 479 | 15 394 70 Squads Dispatched 1 | . 1 . Investigation . | . . . Extermination . | . . . Reinforcement 1 | . 1 . Assault . | . . . Garrison . | . . . Intercept . | . . . Searches Triggered . | . . . Construction Impeded . | . . . Haulers Reinforced . | . . . Active Scanning Responses . | . . . Cargo Convoy Interrupts . | . . . Stealth | -11 -10 -10 --------- Run | Yrd Mat Sub Distress Signals 3 | . 3 . Communications Jammed . | . . . Distress Signals . | . . . Times Spotted 37 | . 22 15 Peak Tracking Total 3 | . 3 2 Tactical Retreats 1 | . 1 . Traps | -11 -10 -10 ------- Run | Yrd Mat Sub Traps Triggered 3 | . 2 1 Indirectly . | . . . Trap Hack Attempts . | . . . Triggered . | . . . Disarmed . | . . . Reprogrammed . | . . . Reused . | . . . Traps Extracted . | . . . Installed . | . . . Triggered . | . . . Machines | -11 -10 -10 ---------- Run | Yrd Mat Sub Machines Disabled 2 | . 1 1 Max in Single Turn 1 | . 1 1 Machines Repaired . | . . . Machines Dismantled . | . . . Machines Sabotaged . | . . . Overloaded Fab Kills . | . . . Hacking | -11 -10 -10 --------- Run | Yrd Mat Sub Machines Accessed 11 | . 9 2 Terminals 7 | . 7 . Fabricators . | . . . Repair Stations . | . . . Recycling Units 2 | . 2 . Scanalyzers . | . . . Garrison Access . | . . . Total Hacks 44 | . 32 12 Successful 32 | . 20 12 Failed 11 | . 11 . Catastrophic . | . . . Database Lockouts 1 | . 1 . Manual 20 | . 20 . Terminals 25 | . 25 . Fabricators . | . . . Repair Stations . | . . . Recycling Units 7 | . 7 . Scanalyzers . | . . . Garrison Access . | . . . Terminal Hacks 17 | . 5 12 Record 11 | . . 11 Robot Analysis 1 | . 1 . Prototype ID Bank 1 | . 1 . Locate Traps 2 | . 2 . Registered Components 1 | . 1 . Proto ID Catalog 1 | . . 1 Fabricator Hacks . | . . . Repair Station Hacks . | . . . Recycling Unit Hacks 4 | . 4 . Report Inventory 2 | . 2 . Retrieve Matter 1 | . 1 . Retrieve Components 1 | . 1 . Scanalyzer . | . . . Garrison Access Hacks . | . . . Unauthorized Hacks 11 | . 11 . Terminals 9 | . 9 . Assimilate 1 | . 1 . Botnet 2 | . 2 . Operators 1 | . 1 . Skim 5 | . 5 . Fabricators . | . . . Repair Stations . | . . . Recycling Units 2 | . 2 . Reject 2 | . 2 . Scanalyzers . | . . . Garrison Access . | . . . Data Cores Recovered . | . . . Used . | . . . Hacking Detections 6 | . 6 . Full Trace Events . | . . . Feedback Events . | . . . Feedback Blocked . | . . . Robot Schematics Acquired . | . . . Robots Built . | . . . Authchips . | . . . Time . | . . . Total Robot Build Rating . | . . . Part Schematics Acquired . | . . . Parts Built . | . . . Authchips . | . . . Time . | . . . Total Part Build Rating . | . . . Part Studies Acquired . | . . . Parts Repaired . | . . . Time . | . . . Parts Recycled . | . . . Recycled Matter . | . . . Retrieved Matter 66 | . 66 . Retrieved Components 10 | . 10 . Parts Scanalyzed . | . . . Part Schematics Acquired . | . . . Parts Damaged . | . . . Bothacking | -11 -10 -10 ------------ Run | Yrd Mat Sub Used RIF Installer . | . . . Robots Hacked . | . . . Non-combat . | . . . Combat . | . . . Robot Hacks Applied . | . . . Relay Couplers Released . | . . . Fabnet Peak Effective % . | . . . Robots Rewired . | . . . Allies Hacked . | . . . Hacks Repelled . | . . . Allies | -11 -10 -10 -------- Run | Yrd Mat Sub Total Allies . | . . . Largest Group . | . . . Highest-Rated Group . | . . . Highest-Rated Ally . | . . . Total Orders . | . . . Ally Attacks . | . . . Total Damage . | . . . Kills . | . . . Allies Corrupted . | . . . Allies Melted . | . . . Intel | -11 -10 -10 ------- Run | Yrd Mat Sub Active Infowar (turns) 5209 | 50 1372 3787 Sensors 16 | . 16 . Terrain 5209 | 50 1372 3787 Robot Analysis Total 1 | . 1 . Derelict Logs Recovered 2 | . . 2 Drone Launches . | . . . Drone Recoveries . | . . . Exploration | -11 -10 -10 ------------- Run | Yrd Mat Sub Turns Passed 5283 | 124 1372 3787 Spaces Moved 2251 | 65 779 1407 Core 7 | 7 . . Treads 619 | . . 619 Legs . | . . . Wheels 326 | 58 268 . Hover 1299 | . 511 788 Flight . | . . . Fastest Speed 50 | 50 80 52 Average Speed 104 | 92 110 101 Slowest Speed 180 | 100 180 160 Overloaded Moves . | . . . Propulsion Burnouts . | . . . Robots Hopped . | . . . Potential Cave-ins 1 | . . 1 Cave-ins Triggered . | . . . Exploration Rate (%) 65 | 5 95 95 Regions Visited 2 Branch Regions 1 Pre-discovered Areas 3 | . 1 2 Known Exits Taken . | . . . Unknown Exits Taken 2 | 1 1 . Scrap Searched 6 | . . 6 Spaces Dug 5 | . . 5 Terrain Destroyed 6 | . . 6 Melee . | . . . Projectile 6 | . . 6 AOE . | . . . Terrain Rammed . | . . . Walls Destroyed . | . . . Machines Disabled . | . . . Actions | -11 -10 -10 --------- Run | Yrd Mat Sub Total 4821 | 102 1108 3611 Wait 2306 | 17 206 2083 Move 2249 | 64 778 1407 Hop . | . . . Pick Up 3 | . 2 1 Fast Attach 16 | 6 6 4 Attach 1 | . . 1 Detach 1 | . . 1 Swap 7 | 2 5 . Drop 11 | 1 8 2 Fire 179 | 12 89 78 Melee . | . . . Ram . | . . . Kick . | . . . Crush . | . . . Escape Stasis . | . . . Rewire . | . . . Trap . | . . . Miscellaneous 48 | . 14 34 Route ------- -11/Scrapyard -10/Materials (discovered 6 exits: [*Mat x3] / [*Min x2] / *Sub) -10/Subcaves (discovered 2 exits: [*Mat x2]) History --------- Turn | Location | Event 6 | -11/Scrapyard | Discovered new exit (range 15) 8 | -11/Scrapyard | Upgraded with Propulsion slot (x1) 8 | -11/Scrapyard | Upgraded with Utility slot (x2) 8 | -11/Scrapyard | Upgraded with Weapon slot (x1) 125 | -11/Scrapyard | Entered Materials 190 | -10/Materials | Central database locked down 223 | -10/Materials | Discovered new exit (range 16) 289 | -10/Materials | Discovered new exit (range 15) 303 | -10/Materials | Build established: Mutant 572 | -10/Materials | Discovered new exit (range 16) 772 | -10/Materials | Discovered new exit (range 15) 791 | -10/Materials | Discovered new exit (range 11) 966 | -10/Materials | Discovered new exit (range 7) 1067 | -10/Materials | Learned 2 Materials zone layouts 1109 | -10/Materials | Learned location of 1 exit from Recycling 1160 | -10/Materials | Learned Storage non-interactive machine intel 1196 | -10/Materials | Learned location of 2 exits from Mines 1228 | -10/Materials | Learned location of Storage (-7) 1271 | -10/Materials | Loaded intel: 2 recycling unit locations 1497 | -10/Materials | Entered Subcaves 1499 | -10/Subcaves | Reached level 2 1500 | -10/Subcaves | Upgraded with Propulsion slot (x1) 1627 | -10/Subcaves | Learned location of Zion (-6) 1831 | -10/Subcaves | Met a Zionite searching for "candidates" 1998 | -10/Subcaves | Shifting Twisted Machinery released Shrapnel Trap 2097 | -10/Subcaves | Shifting Twisted Machinery released Sub. Machine Gun 2115 | -10/Subcaves | Shifting Twisted Machinery released Lgt. Humpback 2117 | -10/Subcaves | Discovered new exit (range 10) 2411 | -10/Subcaves | Core integrity fell below 50% 2761 | -10/Subcaves | Shifting Twisted Machinery released Spk. Treads 3101 | -10/Subcaves | Learned 8 Materials zone layouts 3153 | -10/Subcaves | Visited Clippyterm 3155 | -10/Subcaves | Learned 40 Factory zone layouts 3433 | -10/Subcaves | Visited 4L-MR0's lab 3442 | -10/Subcaves | Found Power Bank 3444 | -10/Subcaves | Attached Power Bank, gained temporary slots: Power x3 4803 | -10/Subcaves | Discovered new exit (range 10) 4850 | -10/Subcaves | Core integrity fell below 20% 5284 | -10/Subcaves | Destroyed by D3-KPA(R) with Subdweller Beam Cannon Last Messages --------------- 03915_ Acquired Spk. Treads. 03918_ Acquired 10 matter. 03963_ WO-E8Z(u) tweaks Twisted Machinery. 03965_ WO-E8Z(u) builds Twisted Machinery. 04229_ Sub. Optics melted. 04229_ Sub. Beam Cannon melted. 04229_ WD-JNP(R) destroyed. 04232_ 9U-DAI(R) affixes Scrap Shield Fragment to Scrap Shield. 04241_ Destroyed Scrap Shield. 04244_ Sub. Monowheel melted. 04244_ Sub. Laser melted. 04244_ 9U-DAI(R) destroyed. 04255_ Used Protomatter to restore core integrity (+123, depleted) 04618_ Triggered Piercing Trap. 04618_ Spikes shoot up from the floor. 04618_ Critical hit (Impale). 04803_ EXIT=FOUND 04838_ Sub. Power Source melted. 04838_ JU-BZW(R) destroyed. 04853_ EV-EDZ(R) destroyed. Map ----- +----------------------------------------------------+ | ?????????????????????????????????????????????????? | | ?????????????????????????????????????????????????? | | ?????????????????????????????????????????????????? | | ???????????????????????????????#?????????????????# | | ?????????????????????????????????????????????????? | | ?????????????????????????#?##???###???##?????????? | | ??????????????????????#######?#####??#???????????? | | ????????????????????###############??####????????? | | ??????????????????####################???##?#????? | | ?????????????????###########################??##?# | | ????????????????###########################?###??? | | ???????????????##############################?#### | | ??????????????###############################??### | | ??????????????#################################### | | ?????????????##################################### | | ?????????????##################################### | | ????????????###################################### | | ????????????###################################### | | ???????????################ ######## #### ### # | | ??????????#?############# | | ??????????################ [ | | ???????????############### ## # # # ######## | | ?????????#??################ # ###### ### # # | | ??????????#?############### """ | | ??????????#?########### ### """ | | ??????????#?#############@ #"##"" ### # | | ????????????#############R##################### | | ??????????#??#######"# R####################### | | ????????????###### " ####################### # | | ????????????######"# "# ######################## | | ??????????#?#?###"""##" ##################### # | | ???????????####### ##"" ##################### # | | ??????????##?##?##" """" ""#################### | | ???????????#?##??# """""" ###################### | | ????????????##?### ""############################ | | ?????????????######?""############################ | | ????????????#???#####?############################ | | ????????????#?##?#?#####?################?######## | | ????????????????##??##?##?###############?#####?## | | ??????????????????######?#??###?#######?########?# | | ?????????????????#??#??######?##???#?##?########## | | ??????????????????#??#????#???????????##????####?# | | ????????????????????#???#????????????###?#??###### | | ??????????????????????????????????????######?##### | | ?????????????????????????????????????????##???#### | | ??????????????????????????????????????????##?##### | | ???????????????????????????????????????????????##? | | ?????????????????????????????????????????????#???? | | ?????????????????????????????????????????????????? | | ?????????????????????????????????????????????????? | +----------------------------------------------------+ Best States ------------- Heat Dissipation 43 Energy Generation 15 Energy Capacity 250 Matter Stores 300 Matter Capacity 300 Sight Range 16 Robot Scan Range 20 Terrain Scan Range 16 Terrain Scan Density 310 Evasion (%) 54 Targeting Accuracy 10 Recoil Reduction 3 Item Schematics ----------------- None Robot Schematics ------------------ None Fabricated ------------ Nothing Repaired ---------- Nothing Studied --------- None Alien Tech Used ----------------- None Achievements -------------- None Challenges ------------ None RPGLIKE | -11 -10 -10 --------- Run | Yrd Mat Sub Levels Raised 1 | . . 1 XP Earned 5655 | 3000 1305 1350 XP Spent 4480 | 2965 . 1515 Upgrades 18 | 11 . 7 Propulsion Slot 2 | 1 . 1 Utility Slot 2 | 2 . . Weapon Slot 1 | 1 . . Core Integrity 1 | . . 1 Heat Dissipation 3 | 1 . 2 Energy Generation 1 | . . 1 Mass Support 1 | . . 1 Inventory Capacity 1 | 1 . . Sensor Range 3 | 3 . . Terrain Scan Density 3 | 2 . 1 Protomatter Created 481 | . 231 250 Integrity Restored 1026 | . 276 750 Core 979 | . 229 750 Parts 47 | . 47 . Protomatter Decayed 189 | . 136 53 Game ------ Seed FieldWaveAutopenetrator Manual? 0 Play Time 00:31:51 Cumulative 55.6 hours Start 2025.11.16 @ 12:56:34 End 2025.11.16 @ 13:28:12 Sessions 1 Manual Loads 0 Difficulty Rogue Special Mode Winter2019/RPGLIKE Game No. 54 Rogue 54 Adventurer 0 Explorer 0 Win Type - Total 0 Types 0/0/0/0/0/0/0/0/0/0 Lore% 51 Gallery% 34 Achievement% 32 Wizard Run 0 Options --------- Layout 0 ASCII 0 Keyboard 0 Movement Mouse Keybinds 0 Fullscreen 2 Font 24/Smallcaps Map View 76x50 Zoom Use 0% Tactical HUD 1 Map Filters NONE Filters NONE Steam 1 RUN: 7879c7a7-8668-4e22-95e1-40bc9717d98e